fUST/lending_fUST_20240501
["ID","MTS","AMOUNT","RATE_DAILY","PERIOD"]
[325133047,1714535451157,-2038.18,0.00273972,120]
[325133048,1714535451166,-500.0,0.00273972,120]
[325133049,1714535451178,-1164.54,0.00273972,120]
[325133050,1714535451188,-2237.77,0.00273972,120]
[325133051,1714535451198,-808.4633,0.00273973,120]
[325133052,1714535451208,-808.463305,0.00273973,120]
[325133053,1714535451218,-302.920855,0.00273973,120]
[325133054,1714535451227,-302.920859,0.00273973,120]
[325133055,1714535451236,-500.0,0.00278465,120]
[325133056,1714535451246,-500.0,0.00278465,120]
[325133057,1714535451255,-1000.0,0.0027876,120]
[325133058,1714535451265,-701.28208,0.00279916,2]
[325133059,1714535451274,-2109.68,0.00280524,120]
[325133060,1714535451284,-500.0,0.00280524,120]
[325133061,1714535451294,-838.79,0.00280524,120]
[325133062,1714535451303,-500.0,0.00280524,2]
[325133063,1714535451315,-1201.82,0.00280524,120]
[325133064,1714535451324,-1250.0,0.00280524,120]
[325133065,1714535451334,-1250.0,0.00280524,120]
[325133066,1714535451347,-1123.97,0.00280524,120]
[325133067,1714535451373,-500.0,0.0028493,120]
[325133068,1714535451461,-1124.64,0.00284931,2]
[325133069,1714535451495,-3197.17,0.00284931,120]
[325133070,1714535451516,-1314.09,0.00284931,120]
[325133071,1714535451526,-858.67,0.00284931,120]
[325133072,1714535451535,-500.0,0.00284931,120]
[325133073,1714535451545,-2804.76,0.00284931,120]
[325133074,1714535451555,-500.0,0.00284931,120]
[325133075,1714535451565,-1875.12,0.00284931,120]
[325133076,1714535451575,-3221.6,0.00284931,120]
[325133077,1714535451584,-915.55,0.00284931,120]
[325133078,1714535451594,-2600.78,0.00284931,120]
[325133079,1714535451603,-10617.77,0.00284931,120]
[325133080,1714535451613,-1672.97,0.00284931,120]
[325133081,1714535451623,-500.0,0.00284931,120]
[325133082,1714535451633,-1187.5,0.00284931,120]
[325133083,1714535451643,-985.82,0.00284931,120]
[325133084,1714535451652,-2038.18,0.00284931,120]
[325133085,1714535451661,-500.0,0.00284931,120]
[325133086,1714535451670,-1164.54,0.00284931,120]
[325133087,1714535451680,-2237.77,0.00284931,120]
[325133088,1714535451689,-159.73149033,0.00289,120]
[325133089,1714535451698,-500.0,0.00289424,120]
[325133090,1714535451705,-500.0,0.00289424,120]
[325133091,1714535451714,-3999.999999,0.0029,120]
[325133092,1714535451724,-232.3,0.00290873,120]
[325133093,1714535451733,-2109.68,0.00291483,120]
[325133094,1714535451742,-178.52049906,0.00291483,120]
[325133095,1714535451751,-838.79,0.00291483,120]
[325133096,1714535451760,-500.0,0.00291483,2]
[325133097,1714535451769,-1201.82,0.00291483,120]
[325133098,1714535451778,-1250.0,0.00291483,120]
[325133099,1714535451788,-1250.0,0.00291483,120]
[325133100,1714535451798,-1123.97,0.00291483,120]
[325133101,1714535451809,-151.0,0.00292849,120]
[325133102,1714535451818,-1000.0,0.0029307,120]
[325133103,1714535451828,-500.0,0.00295889,120]
[325133104,1714535451838,-1124.64,0.0029589,2]
[325133105,1714535451847,-3197.17,0.0029589,120]
[325133106,1714535451857,-1314.09,0.0029589,120]
[325133107,1714535451866,-858.67,0.0029589,120]
[325133108,1714535451875,-499.58086244,0.0029589,120]
[325133109,1714535451884,-2804.76,0.0029589,120]
[325133110,1714535451894,-500.0,0.0029589,120]
[325133111,1714535451903,-1875.12,0.0029589,120]
[325133112,1714535451912,-3221.6,0.0029589,120]
[325133113,1714535451922,-915.55,0.0029589,120]
[325133114,1714535451931,-2600.78,0.0029589,120]
[325133115,1714535451941,-10617.77,0.0029589,120]
[325133116,1714535451950,-1672.97,0.0029589,120]
[325133117,1714535451960,-500.0,0.0029589,120]
[325133118,1714535451970,-1187.5,0.0029589,120]
[325133119,1714535451979,-985.82,0.0029589,120]
[325133120,1714535451988,-2038.18,0.0029589,120]
[325133121,1714535451998,-510.88218413,0.0029589,120]
[325133122,1714535452009,-1164.54,0.0029589,120]
[325133123,1714535452019,-2237.77,0.0029589,120]
[325133124,1714535452028,-769.4,0.00298945,120]
[325133125,1714535452037,-650.0,0.003,120]
[325133126,1714535452047,-5059.52399999,0.003,120]
[325133127,1714535452057,-500.0,0.00300383,120]
[325133128,1714535452066,-500.0,0.00300383,120]
[325133129,1714535452076,-10000.0,0.00302092,120]
[325133130,1714535452086,-2109.68,0.00302442,120]
[325133131,1714535452096,-838.79,0.00302442,120]
[325133132,1714535452110,-500.0,0.00302442,2]
[325133133,1714535452119,-1201.82,0.00302442,120]
[325133134,1714535452129,-1250.0,0.00302442,120]
[325133135,1714535452139,-1250.0,0.00302442,120]
[325133136,1714535452149,-1123.97,0.00302442,120]
[325133137,1714535452160,-1000.0,0.00303256,120]
[325133138,1714535452170,-701.28207,0.00305363,2]
[325133139,1714535452182,-500.0,0.00306847,120]
[325133140,1714535452191,-1124.64,0.00306849,2]
[325133141,1714535452201,-3197.17,0.00306849,120]
[325133142,1714535452211,-1314.09,0.00306849,120]
[325133143,1714535452220,-858.67,0.00306849,120]
[325133144,1714535452230,-2804.76,0.00306849,120]
[325133145,1714535452240,-500.0,0.00306849,120]
[325133146,1714535452249,-1875.12,0.00306849,120]
[325133147,1714535452258,-3221.6,0.00306849,120]
[325133148,1714535452267,-915.55,0.00306849,120]
[325133149,1714535452277,-2600.78,0.00306849,120]
[325133150,1714535452287,-10617.77,0.00306849,120]
[325133151,1714535452296,-1672.97,0.00306849,120]
[325133152,1714535452306,-500.0,0.00306849,120]
[325133153,1714535452316,-1187.5,0.00306849,120]
[325133154,1714535452325,-985.82,0.00306849,120]
[325133155,1714535452335,-2038.18,0.00306849,120]
[325133156,1714535452346,-1164.54,0.00306849,120]
[325133157,1714535452358,-2237.77,0.00306849,120]
[325133158,1714535452378,-500.0,0.00311342,120]
[325133159,1714535452446,-632.03828776,0.00311342,120]
[325133160,1714535452456,-2109.68,0.00313401,120]
[325133161,1714535452466,-838.79,0.00313401,120]
[325133162,1714535452476,-527.204375,0.00313401,2]
[325133163,1714535452486,-1201.82,0.00313401,120]
[325133164,1714535452496,-1250.0,0.00313401,120]
[325133165,1714535452507,-1250.0,0.00313401,120]
[325133166,1714535452518,-1123.97,0.00313401,120]
[325133167,1714535452528,-329.31489999,0.00313896,14]
[325133168,1714535452538,-1000.0,0.0031762,120]
[325133169,1714535452547,-465.4016,0.00317806,120]
[325133170,1714535452558,-1124.64,0.00317808,2]
[325133171,1714535452567,-3197.17,0.00317808,120]
[325133172,1714535452576,-1314.09,0.00317808,120]
[325133173,1714535452586,-858.67,0.00317808,120]
[325133174,1714535452595,-2804.76,0.00317808,120]
[325133175,1714535452605,-500.0,0.00317808,120]
[325133176,1714535452616,-1875.12,0.00317808,120]
[325133177,1714535452626,-3221.6,0.00317808,120]
[325133178,1714535452635,-915.55,0.00317808,120]
[325133179,1714535452645,-2600.78,0.00317808,120]
[325133180,1714535452655,-10617.77,0.00317808,120]
[325133181,1714535452664,-1672.97,0.00317808,120]
[325133182,1714535452675,-500.0,0.00317808,120]
[325133183,1714535452684,-1187.5,0.00317808,120]
[325133184,1714535452693,-985.82,0.00317808,120]
[325133185,1714535452703,-2038.18,0.00317808,120]
[325133186,1714535452712,-1164.54,0.00317808,120]
[325133187,1714535452721,-2237.77,0.00317808,120]
[325133188,1714535452730,-500.0,0.00322301,120]
[325133189,1714535452739,-2109.68,0.0032436,120]
[325133190,1714535452749,-838.79,0.0032436,120]
[325133191,1714535452758,-1201.82,0.0032436,120]
[325133192,1714535452767,-1250.0,0.0032436,120]
[325133193,1714535452776,-1250.0,0.0032436,120]
[325133194,1714535452786,-1123.97,0.0032436,120]
[325133195,1714535452795,-2000.0,0.00325,120]
[325133196,1714535452804,-1124.64,0.00328767,2]
[325133197,1714535452815,-3197.17,0.00328767,120]
[325133198,1714535452825,-1314.09,0.00328767,120]
[325133199,1714535452834,-858.67,0.00328767,120]
[325133200,1714535452843,-2804.76,0.00328767,120]
[325133201,1714535452853,-500.0,0.00328767,120]
[325133202,1714535452863,-1875.12,0.00328767,120]
[325133203,1714535452872,-3221.6,0.00328767,120]
[325133204,1714535452882,-915.55,0.00328767,120]
[325133205,1714535452891,-2600.78,0.00328767,120]
[325133206,1714535452900,-10617.77,0.00328767,120]
[325133207,1714535452910,-1672.97,0.00328767,120]
[325133208,1714535452919,-602.67265503,0.00328767,120]
[325133209,1714535452929,-1187.5,0.00328767,120]
[325133210,1714535452939,-985.82,0.00328767,120]
[325133211,1714535452948,-2038.18,0.00328767,120]
[325133212,1714535452958,-1164.54,0.00328767,120]
[325133213,1714535452967,-2237.77,0.00328767,120]
[325133214,1714535452976,-701.28208,0.00330809,2]
[325133215,1714535452986,-500.0,0.0033326,120]
[325133216,1714535452995,-10000.0,0.00333534,120]
[325133217,1714535453004,-2109.68,0.00335318,120]
[325133218,1714535453014,-838.79,0.00335318,120]
[325133219,1714535453023,-1201.82,0.00335318,120]
[325133220,1714535453033,-1250.0,0.00335318,120]
[325133221,1714535453042,-1250.0,0.00335318,120]
[325133222,1714535453052,-1123.97,0.00335318,120]
[325133223,1714535453061,-1124.64,0.00339726,2]
[325133224,1714535453070,-3197.17,0.00339726,120]
[325133225,1714535453080,-1314.09,0.00339726,120]
[325133226,1714535453089,-858.67,0.00339726,120]
[325133227,1714535453103,-2804.76,0.00339726,120]
[325133228,1714535453112,-500.0,0.00339726,120]
[325133229,1714535453122,-1875.12,0.00339726,120]
[325133230,1714535453131,-3221.6,0.00339726,120]
[325133231,1714535453141,-915.55,0.00339726,120]
[325133232,1714535453150,-2600.78,0.00339726,120]
[325133233,1714535453159,-10617.77,0.00339726,120]
[325133234,1714535453168,-1672.97,0.00339726,120]
[325133235,1714535453178,-1187.5,0.00339726,120]
[325133236,1714535453188,-985.82,0.00339726,120]
[325133237,1714535453197,-2038.18,0.00339726,120]
[325133238,1714535453206,-1164.54,0.00339726,120]
[325133239,1714535453216,-2237.77,0.00339726,120]
[325133240,1714535453226,-418.732,0.00341482,120]
[325133241,1714535453235,-232.3,0.00342394,120]
[325133242,1714535453244,-500.0,0.00344218,120]
[325133243,1714535453296,-417.0,0.00344482,120]
[325133244,1714535453306,-2500.0,0.003459,120]
[325133245,1714535453317,-2109.68,0.00346277,120]
[325133246,1714535453326,-838.79,0.00346277,120]
[325133247,1714535453336,-1201.82,0.00346277,120]
[325133248,1714535453346,-1250.0,0.00346277,120]
[325133249,1714535453355,-1250.0,0.00346277,120]
[325133250,1714535453364,-1123.97,0.00346277,120]
[325133251,1714535453374,-417.0,0.00347482,120]
[325133252,1714535453383,-153.52140436,0.00348238,120]
[325133253,1714535453392,-2500.0,0.003489,120]
[325133254,1714535453402,-6879.67161981,0.00349998,30]
[325133255,1714535453411,-176776.5624142,0.0035,120]
[325133256,1714535453421,-2000.0,0.0035,120]
[325133257,1714535453430,-417.0,0.00350482,120]
[325133258,1714535453439,-1124.64,0.00350684,2]
[325133259,1714535453447,-3197.17,0.00350684,120]
[325133260,1714535453456,-1314.09,0.00350684,120]
[325133261,1714535453466,-858.67,0.00350684,120]
[325133262,1714535453475,-2804.76,0.00350684,120]
[325133263,1714535453485,-314.99721985,0.00350684,120]
[325133264,1714535453494,-1875.12,0.00350684,120]
[325133265,1714535453504,-3221.6,0.00350684,120]
[325133266,1714535453513,-915.55,0.00350684,120]
[325133267,1714535453523,-2600.78,0.00350684,120]
[325133268,1714535453532,-10617.77,0.00350684,120]
[325133269,1714535453541,-1672.97,0.00350684,120]
[325133270,1714535453550,-1187.5,0.00350684,120]
[325133271,1714535453561,-985.82,0.00350684,120]
[325133272,1714535453570,-2038.18,0.00350684,120]
[325133273,1714535453579,-1164.54,0.00350684,120]
[325133274,1714535453588,-2237.77,0.00350684,120]
[325133275,1714535453598,-1000.0,0.0035275,120]
[325133276,1714535453607,-500.0,0.00355177,120]
[325133277,1714535453617,-701.28207,0.00356256,2]
[325133278,1714535453626,-769.4,0.00356677,120]
[325133279,1714535453635,-2109.68,0.00357236,120]
[325133280,1714535453644,-838.79,0.00357236,120]
[325133281,1714535453653,-1201.82,0.00357236,120]
[325133282,1714535453669,-1250.0,0.00357236,120]
[325133283,1714535453689,-1250.0,0.00357236,120]
[325133284,1714535453706,-1123.97,0.00357236,120]
[325133285,1714535453724,-167.56295914,0.00357519,120]
[325133286,1714535453744,-2000.0,0.0036,120]
[325133287,1714535453760,-1124.737039,0.00361643,2]
[325133288,1714535453779,-3197.181459,0.00361643,120]
[325133289,1714535453793,-1314.27352959,0.00361643,120]
[325133290,1714535453808,-858.83730251,0.00361643,120]
[325133291,1714535453826,-2804.97457701,0.00361643,120]
[325133292,1714535453847,-1875.26038892,0.00361643,120]
[325133293,1714535453861,-3221.6931233,0.00361643,120]
[325133294,1714535453875,-915.73403512,0.00361643,120]
[325133295,1714535453893,-2600.96987427,0.00361643,120]
[325133296,1714535453906,-10617.92842391,0.00361643,120]
[325133297,1714535453921,-1673.16455567,0.00361643,120]
[325133298,1714535453934,-1187.5,0.00361643,120]
[325133299,1714535453949,-986.05488271,0.00361643,120]
[325133300,1714535453963,-2038.35679228,0.00361643,120]
[325133301,1714535453976,-1164.54483374,0.00361643,120]
[325133302,1714535453990,-2237.86063793,0.00361643,120]
[325133303,1714535454004,-500.0,0.00366136,120]
[325133304,1714535454018,-2109.68,0.00368195,120]
[325133305,1714535454033,-838.79,0.00368195,120]
[325133306,1714535454046,-1201.82,0.00368195,120]
[325133307,1714535454062,-1250.0,0.00368195,120]
[325133308,1714535454077,-1250.0,0.00368195,120]
[325133309,1714535454091,-1123.97,0.00368195,120]
[325133310,1714535454108,-10000.0,0.00368249,120]
[325133311,1714535454125,-1000.0,0.00368958,120]
[325133312,1714535454139,-2000.0,0.0037,120]
[325133313,1714535454153,-590.0,0.003748,30]
[325133314,1714535454168,-441.606117,0.00377095,120]
[325133315,1714535454181,-466493.93688,0.0037777,120]
[325133316,1714535454195,-16493.209352,0.00378898,120]
[325133317,1714535454210,-51170.98316798,0.00378898,120]
[325133318,1714535454224,-4000.000001,0.00379,120]
[325133319,1714535454238,-2109.68,0.00379154,120]
[325133320,1714535454247,-838.79,0.00379154,120]
[325133321,1714535454327,-1201.82,0.00379154,120]
[325133322,1714535454337,-1250.0,0.00379154,120]
[325133323,1714535454346,-1250.0,0.00379154,120]
[325133324,1714535454356,-1123.97,0.00379154,120]
[325133325,1714535454365,-2000.0,0.0038,120]
[325133326,1714535454375,-1000000.0,0.0038,120]
[325133327,1714535454384,-701.28207,0.00381703,2]
[325133328,1714535454393,-500.0,0.00383561,120]
[325133329,1714535454402,-500.0,0.00383561,120]
[325133330,1714535454411,-496.27483749,0.00383561,120]
[325133331,1714535454420,-158.92635285,0.00385,120]
[325133332,1714535454430,-33897.53526088,0.00388979,120]
[325133333,1714535454439,-2000.0,0.0039,120]
[325133334,1714535454448,-2109.68,0.00390113,120]
[325133335,1714535454457,-838.79,0.00390113,120]
[325133336,1714535454467,-1201.82,0.00390113,120]
[325133337,1714535454476,-1250.0,0.00390113,120]
[325133338,1714535454485,-1250.0,0.00390113,120]
[325133339,1714535454494,-1123.97,0.00390113,120]
[325133340,1714535454503,-232.3,0.00393915,120]
[325133341,1714535454512,-329.31489999,0.00399677,14]
[325133342,1714535454521,-550.0,0.004,120]
[325133343,1714535454531,-500.0,0.004,120]
[325133344,1714535454540,-495.0,0.004,120]
[325133345,1714535454549,-164.07,0.004,120]
[325133346,1714535454558,-2109.68,0.00401072,120]
[325133347,1714535454569,-838.79,0.00401072,120]
[325133348,1714535454578,-1201.82,0.00401072,120]
[325133349,1714535454587,-1250.0,0.00401072,120]
[325133350,1714535454596,-1250.0,0.00401072,120]
[325133351,1714535454605,-1123.97,0.00401072,120]
[325133352,1714535454615,-1000.0,0.0040154,120]
[325133353,1714535454624,-10000.0,0.00406576,120]
[325133354,1714535454633,-701.28208,0.0040715,2]
[325133355,1714535454643,-156.93814876,0.00407932,120]
[325133356,1714535454653,-2924.0,0.0041,120]
[325133357,1714535454663,-100000.0,0.00412,120]
[325133358,1714535454672,-2109.77,0.00412031,120]
[325133359,1714535454682,-839.01,0.00412031,120]
[325133360,1714535454691,-1201.90767552,0.00412031,120]
[325133361,1714535454701,-1250.19762309,0.00412031,120]
[325133362,1714535454710,-1250.0,0.00412031,120]
[325133363,1714535454719,-1124.1565,0.00412031,120]
[325133364,1714535454729,-151.0,0.00414274,120]
[325133365,1714535454738,-769.4,0.00423432,120]
[325133366,1714535454747,-290659.54453843,0.0042598,120]
[325133367,1714535454857,-151.0,0.00076,120]
[325133368,1714535454866,-151.0,0.00077068,120]
[325133369,1714535454875,-151.0,0.00078137,120]
[325133370,1714535454885,-151.0,0.00079205,120]
[325133371,1714535454895,-500.0,0.00109589,120]
[325133372,1714535454904,-500.0,0.00120547,120]
[325133373,1714535454914,-168.25074152,0.00131506,120]
[325133374,1714535454923,-1517.24022914,0.0042598,120]
[325133375,1714535454939,-214.39765049,0.0005656,120]
[325133376,1714535454948,-115925.98433266,0.0042598,120]
[325133377,1714535454959,-39571.05648927,0.0042598,120]
[325133378,1714535454970,-8253.17510528,0.0042598,120]
[325133379,1714535455082,-214.39765049,0.0005656,120]
[325133380,1714535455092,-214.39765049,0.0005656,120]
[325133381,1714535455103,-214.39765049,0.0005656,120]
[325133382,1714535455112,-214.39765049,0.0005656,120]
[325133383,1714535455122,-214.39765049,0.0005656,120]
[325133384,1714535455131,-214.39765049,0.0005656,120]
[325133385,1714535455141,-214.39765049,0.0005656,120]
[325133386,1714535455150,-154.65974855,0.00069,7]
[325133387,1714535455159,-151.0,0.00080274,120]
[325133388,1714535455168,-151.0,0.00081342,120]
[325133389,1714535455178,-27.35981114,0.00082411,120]
[325133390,1714535455190,-123.64018886,0.00082411,120]
[325133391,1714535455199,-151.0,0.00083479,120]
[325133392,1714535455208,-151.0,0.00084548,120]
[325133393,1714535455218,-500.0,0.00109589,120]
[325133394,1714535455227,-500.0,0.00109589,120]
[325133395,1714535455236,-619.74279753,0.00109589,120]
[325133396,1714535455245,-58025.71375441,0.0042598,120]
[325133397,1714535455275,-0.00612817,0.0042598,120]
[325133403,1714535581850,154.65974855,0.00024382,2]
[325133404,1714535591351,154.65974855,0.00024382,2]
[325133405,1714535597186,17876.8576825,0.0003756,2]
[325133406,1714535608771,1220.43855762,0.0004,7]
[325133407,1714535632629,166.70315422,0.00045804,105]
[325133408,1714535632752,1502.60683839,0.00045804,2]
[325133409,1714535634803,12655.10680731,0.00045804,7]
[325133410,1714535635007,-189.87196191,0.00041,2]
[325133411,1714535635037,-263.4031,0.00042164,30]
[325133412,1714535636602,10000.0,0.0004,7]
[325133413,1714535638647,7769.34489384,0.00045804,2]
[325133414,1714535653368,-171.343565,0.00049863,2]
[325133415,1714535653392,-999.0,0.00049999,120]
[325133416,1714535653416,-999.0,0.00049999,120]
[325133417,1714535653439,-999.0,0.00049999,120]
[325133418,1714535653463,-707.9468508,0.00049999,120]
[325133419,1714535653485,-151.0,0.0005,120]
[325133420,1714535654565,10000.0,0.0004,7]
[325133421,1714535655662,208.1490103,9.999e-05,2]
[325133422,1714535664287,1087.1231282,0.0005,2]
[325133423,1714535671607,208.57356575,0.00020913,2]
[325133424,1714535672571,9468.86387995,0.0004,7]
[325133425,1714535672596,531.13612005,0.0004,7]
[325133426,1714535680008,5000.0,0.00039,4]
[325133427,1714535688858,1003.40089435,0.000328,60]
[325133428,1714535693636,10000.0,0.0004,7]
[325133429,1714535696003,4301.26583701,0.00039,4]
[325133430,1714535709636,2344.50000003,0.00020913,2]
[325133434,1714535730859,198.736555,0.00036384,2]
[325133435,1714535731070,198.736555,0.00041343,2]
[325133436,1714535846240,153.75452928,0.00045208,30]
[325133437,1714535851279,1268.46950928,0.00020913,2]
[325133438,1714535851306,47.81120431,0.00020913,2]
[325133439,1714535851897,164.58639232,0.00020913,2]
[325133440,1714535853219,155.5515027,0.00020913,2]
[325133441,1714535853409,8799.80005311,0.00045,120]
[325133442,1714535853541,461.20078949,0.00020913,2]
[325133443,1714535853863,402.25888817,0.00020913,2]
[325133444,1714535854219,155.07583989,0.00020913,2]
[325133445,1714535862371,1608.78436868,0.00034,60]
[325133446,1714535867065,154.93974595,0.00020913,2]
[325133447,1714535873935,379.63675339,0.00020913,2]
[325133449,1714535877590,155.05927646,0.00020913,2]
[325133450,1714535877926,486.33472313,0.0004,2]
[325133451,1714535880841,182.95117931,0.00035,30]
[325133452,1714535881176,155.11759518,0.00020913,2]
[325133453,1714535883089,264.30266857,0.00020913,2]
[325133454,1714535885278,904.61226945,0.00035,30]
[325133455,1714535887944,200.80542565,0.0004,4]
[325133457,1714535897855,363.25875122,0.0004,2]
[325133458,1714535913647,154.65974855,0.00020913,2]
[325133459,1714535917488,574.47844305,0.00020913,2]
[325133460,1714535926302,683.41665733,0.00020913,2]
[325133461,1714535931582,157.12582822,0.00020913,2]
[325133462,1714535937446,307.92512881,0.00020913,2]
[325133464,1714535950304,350.88430225,0.00020913,2]
[325133465,1714535973631,1494.63913906,0.00020913,2]
[325133466,1714535974214,200.48742417,0.00020913,2]
[325133467,1714535974508,240.28077303,0.00038,30]
[325133468,1714535979709,1695.41656809,0.000425,30]
[325133469,1714535980467,681.5657808,0.00020913,2]
[325133470,1714535999658,809.07559665,0.000425,30]
[325133471,1714536002888,2607.95718301,0.00039,4]
[325133472,1714536002911,2392.04281699,0.00039,4]
[325133473,1714536005519,475.3346953,0.00020913,2]
[325133474,1714536009171,211.7,0.00033778,3]
[325133475,1714536019518,475.3346953,0.00020913,2]
[325133476,1714536052424,154.65974855,0.0004234,10]
[325133477,1714536074109,507.0,0.000425,2]
[325133478,1714536077970,155.25377864,0.0004234,10]
[325133814,1714536190691,694.16045276,0.00020913,2]
[325133815,1714536341114,-152.84503307,0.00045064,30]
[325133816,1714536341134,-155.03558914,0.000459,4]
[325133817,1714536341154,-599.32099364,0.0005,120]
[325133818,1714536352403,-572.86552382,0.0005,120]
[325133820,1714536431104,-178.06762619,0.000499,2]
[325133821,1714536431124,-424.75053399,0.0005,120]
[325133829,1714536439182,-703.23080975,0.0005,120]
[325133843,1714536443883,154.65974855,0.00031251,4]
[325133879,1714536550101,-152.88481962,0.00049001,30]
[325133880,1714536550121,-111.59624886,0.00049863,2]
[325133882,1714536570124,-51.99372114,0.00049863,2]
[325133883,1714536570145,-6285.73166171,0.0005,120]
[325133884,1714536570166,-151.0,0.0005,120]
[325133885,1714536570187,-1068.0,0.00052,120]
[325133886,1714536570208,-271.2019791,0.00053604,2]
[325133887,1714536570228,-153.0,0.00053604,2]
[325133888,1714536570249,-153.0,0.00053604,2]
[325133889,1714536570269,-153.0,0.00053604,2]
[325133890,1714536570289,-203.6061089,0.00054143,2]
[325133891,1714536570309,-306.8714417,0.00054143,2]
[325133892,1714536570328,-153.75452928,0.00055583,120]
[325133893,1714536570348,-214.39765049,0.0005656,120]
[325133894,1714536570368,-214.39765049,0.0005656,120]
[325133895,1714536570387,-214.39765049,0.0005656,120]
[325133896,1714536570407,-214.39765049,0.0005656,120]
[325133897,1714536570432,-214.39765049,0.0005656,120]
[325133898,1714536570451,-203.86139577,0.0005656,120]
[325133899,1714536590858,500.0,0.000425,2]
[325133900,1714536609286,169.51199233,0.0003377,3]
[325133901,1714536609312,43.88800767,0.0003377,3]
[325133943,1714536632652,-273.89381373,0.00044269,2]
[325133945,1714536632662,-151.0,0.0005,120]
[325133947,1714536632671,-10.53625472,0.0005656,120]
[325133949,1714536632680,-214.39765049,0.0005656,120]
[325133950,1714536632689,-214.39765049,0.0005656,120]
[325133952,1714536632698,-214.39765049,0.0005656,120]
[325133953,1714536632707,-214.39765049,0.0005656,120]
[325133955,1714536632716,-214.39765049,0.0005656,120]
[325133956,1714536632725,-214.89,0.0005656,120]
[325133958,1714536632734,-857.66560196,0.0005656,120]
[325133959,1714536632743,-857.66560196,0.0005656,120]
[325133960,1714536632753,-857.66560196,0.0005656,120]
[325133961,1714536632762,-857.66560196,0.0005656,120]
[325133962,1714536632771,-857.66560196,0.0005656,120]
[325133963,1714536632780,-857.66560196,0.0005656,120]
[325133964,1714536632791,-857.66560196,0.0005656,120]
[325133965,1714536632801,-857.66560196,0.0005656,120]
[325133966,1714536632810,-857.66560196,0.0005656,120]
[325133967,1714536632819,-857.66560196,0.0005656,120]
[325133968,1714536632828,-857.66560196,0.0005656,120]
[325133969,1714536632837,-857.66560196,0.0005656,120]
[325133970,1714536632847,-857.66560196,0.0005656,120]
[325133971,1714536632856,-857.66560196,0.0005656,120]
[325133972,1714536632865,-857.66560196,0.0005656,120]
[325133973,1714536632874,-857.66560196,0.0005656,120]
[325133974,1714536632884,-857.66560196,0.0005656,120]
[325133975,1714536632894,-857.66560196,0.0005656,120]
[325133976,1714536632903,-857.66560196,0.0005656,120]
[325133977,1714536632912,-11826.50963451,0.0005665,30]
[325133978,1714536633003,-234.47140587,0.000595,2]
[325133979,1714536633013,-234.47140587,0.000595,2]
[325133980,1714536633022,-171.343565,0.00059543,2]
[325133981,1714536633031,-1218.43353339,0.0006,120]
[325133982,1714536633044,-99.00711129,0.0006,120]
[325133983,1714536633054,-473.76068343,0.0006,120]
[325133984,1714536633063,-1.92459704,0.0006,12]
[325134060,1714536638521,-671.22197632,0.0006,12]
[325134062,1714536638531,-345.76981213,0.000616,120]
[325134064,1714536638540,-500.0,0.00062,120]
[325134066,1714536638552,-163.58997,0.00064384,2]
[325134067,1714536638561,-202.0,0.0006566,120]
[325134068,1714536638571,-44444.0,0.000685,120]
[325134069,1714536638580,-1807.48,0.0006878,3]
[325134070,1714536638589,-3095.05,0.0006878,3]
[325134071,1714536638598,-134403.91345157,0.0006879,30]
[325134072,1714536638607,-2825.67610779,0.000688,61]
[325134073,1714536638616,-1004000.0,0.000688,120]
[325134074,1714536638626,-154.65974855,0.00069,7]